bitfinex/quotes_SOLUSD_20220228
["timestamp","ask_amount","ask_price","bid_price","bid_amount"]
[1646080519837,1.55187333,97.868,97.762,4.089]
[1646080520638,1.55187333,97.868,97.762,108.089]
[1646080521740,105.55187333,97.868,97.762,4.089]
[1646080521942,166.39,97.866,97.762,4.089]
[1646080522139,1.6126551,97.865,97.73,20.08106549]
[1646080522339,4.35944431,97.865,97.725,10.64989491]
[1646080522540,2.74678921,97.864,97.725,10.64989491]
[1646080522942,2.74678921,97.864,97.732,4.09]
[1646080523143,2.74678921,97.864,97.733,51.87839802]
[1646080523341,24.5585,97.868,97.734,106.48490736]
[1646080523542,1.80310548,97.867,97.735,2.57628916]
[1646080523742,1.80310548,97.867,97.741,5.0]
[1646080523943,1.80310548,97.867,97.751,25.93527709]
[1646080524857,62.39,97.859,97.751,25.93527709]
[1646080525057,166.39,97.854,97.751,25.93527709]
[1646080525257,1.80971828,97.851,97.751,25.93527709]
[1646080525859,2.74678921,97.85,97.751,25.93527709]
[1646080526460,2.74678921,97.85,97.722,2.74678921]
[1646080526661,166.39,97.849,97.722,2.74678921]
[1646080526860,18.57566721,97.85,97.722,2.74678921]
[1646080526861,1.63731922,97.838,97.722,2.74678921]
[1646080527058,168.05205073,97.837,97.722,2.74678921]
[1646080527259,1.68344059,97.836,97.722,2.74678921]
[1646080527457,48.0370684,97.835,97.723,48.22139959]
[1646080527660,1.57678212,97.833,97.723,48.22139959]
[1646080528059,2.74678921,97.832,97.723,48.22139959]
[1646080528459,4.47461425,97.832,97.723,48.22139959]
[1646080528860,2.74678921,97.831,97.723,48.22139959]
[1646080529060,1.72782504,97.832,97.724,106.74678921]
[1646080529261,1.72782504,97.832,97.724,6.83678921]
[1646080529563,1.72782504,97.832,97.725,2.74678921]
[1646080529761,1.72782504,97.832,97.724,4.09]
[1646080529963,1.72782504,97.832,97.725,2.74678921]
[1646080531363,166.39,97.826,97.725,2.74678921]
[1646080531566,1.75579219,97.825,97.725,2.74678921]
[1646080531764,1.80966959,97.834,97.725,2.74678921]
[1646080532366,4.5564588,97.834,97.723,48.22139959]
[1646080532567,170.9464588,97.834,97.723,48.22139959]
[1646080532767,12.46,97.83,97.723,48.22139959]
[1646080532968,1.64704506,97.828,97.689,4.09]
[1646080533469,2.74678921,97.827,97.69,2.74678921]
[1646080533869,2.74678921,97.827,97.691,4.091]
[1646080534067,2.74678921,97.827,97.692,54.88264206]
[1646080534269,2.74678921,97.827,97.692,57.62943127]
[1646080534270,166.39,97.825,97.692,57.62943127]
[1646080534468,1.66592483,97.824,97.692,57.62943127]
[1646080534671,166.39,97.819,97.689,4.091]
[1646080534869,1.82961436,97.818,97.689,4.091]
[1646080535270,166.39,97.817,97.688,0.51163579]
[1646080535471,1.38719422,97.816,97.688,0.51163579]
[1646080535671,1.86589614,97.813,97.688,0.51163579]
[1646080535871,166.39,97.797,97.688,0.51163579]
[1646080536071,1.72157794,97.794,97.688,0.51163579]
[1646080536274,48.1648,97.796,97.688,0.51163579]
[1646080536275,166.39,97.777,97.688,0.51163579]
[1646080536471,104.0,97.775,97.688,0.51163579]
[1646080536671,104.0,97.765,97.688,0.51163579]
[1646080536871,104.0,97.755,97.688,0.51163579]
[1646080537074,1.85943518,97.754,97.688,0.51163579]
[1646080537278,104.0,97.741,97.688,0.51163579]
[1646080537473,1.76266022,97.734,97.688,0.51163579]
[1646080537672,104.0,97.732,97.688,0.51163579]
[1646080537876,1.44197474,97.732,97.688,0.51163579]
[1646080538773,62.39,97.73,97.61,4.093]
[1646080538972,62.39,97.726,97.61,4.093]
[1646080539172,1.37543846,97.725,97.633,4.093]
[1646080539375,25.97088921,97.725,97.633,4.093]
[1646080539573,1.39198281,97.724,97.633,4.093]
[1646080539777,4.13877202,97.724,97.634,45.57102054]
[1646080539972,2.74678921,97.723,97.634,45.57102054]
[1646080540473,1.39198281,97.724,97.634,45.57102054]
[1646080544178,1.39198281,97.724,97.635,2.74678921]
[1646080544581,2.74678921,97.723,97.634,45.57102054]
[1646080546783,1.39198281,97.724,97.634,45.57102054]
[1646080546983,23.2241,97.725,97.634,45.57102054]
[1646080547386,1.70398144,97.749,97.635,106.74678921]
[1646080547586,1.52349008,97.749,97.64,12.46]
[1646080547984,1.52349008,97.749,97.641,2.74678921]
[1646080548383,1.4900074,97.749,97.641,2.74678921]
[1646080548584,4.094,97.781,97.641,2.74678921]
[1646080548785,4.094,97.771,97.641,2.74678921]
[1646080548985,23.9673,97.762,97.641,2.74678921]
[1646080549185,1.66377542,97.749,97.641,2.74678921]
[1646080549387,1.36661714,97.749,97.641,2.74678921]
[1646080549584,1.80356553,97.749,97.641,2.74678921]
[1646080549785,23.9673,97.762,97.641,106.74678921]
[1646080549986,23.9673,97.762,97.642,2.27874445]
[1646080550188,23.9673,97.762,97.643,104.0]
[1646080550386,23.9673,97.762,97.644,2.85882899]
[1646080550789,53.42458204,97.761,97.645,104.0]
[1646080550988,53.42458204,97.761,97.646,3.04877698]
[1646080551194,23.9673,97.762,97.66,12.46]
[1646080551392,1.3515249,97.784,97.662,2.65841218]
[1646080551789,1.3515249,97.784,97.664,104.0]
[1646080551988,1.3515249,97.784,97.665,2.31134675]
[1646080552189,57.73460718,97.783,97.681,104.0]
[1646080552489,57.73460718,97.783,97.682,149.57102054]
[1646080552889,57.73460718,97.783,97.682,152.31780975]
[1646080553091,57.73460718,97.783,97.683,2.74678921]
[1646080553290,57.73460718,97.783,97.69,12.46]
[1646080553491,57.73460718,97.783,97.691,104.0]
[1646080553692,1.69542244,97.815,97.691,104.0]
[1646080553693,1.69542244,97.815,97.692,2.26168214]
[1646080553891,1.74062246,97.838,97.692,5.00847135]
[1646080554093,1.74062246,97.838,97.694,2.44254542]
[1646080554291,4.091,97.838,97.694,2.44254542]
[1646080554491,4.091,97.838,97.696,104.0]
[1646080554695,53.6412209,97.837,97.698,104.0]
[1646080554892,53.6412209,97.837,97.711,104.36]
[1646080555092,53.6412209,97.837,97.713,104.0]
[1646080555294,53.6412209,97.837,97.714,2.25227852]
[1646080555692,53.6412209,97.837,97.715,104.0]
[1646080555894,53.6412209,97.837,97.716,2.88599946]
[1646080556092,53.6412209,97.837,97.731,104.0]
[1646080556293,53.6412209,97.837,97.733,104.0]
[1646080556494,53.6412209,97.837,97.734,2.47892518]
[1646080556892,1.45659435,97.869,97.735,2.74678921]
[1646080557093,70.9374,97.87,97.735,106.74678921]
[1646080557295,70.9374,97.87,97.735,125.98581542]
[1646080557497,70.9374,97.87,97.737,104.0]
[1646080557694,1.0689916,97.872,97.751,104.0]
[1646080557897,1.0689916,97.872,97.75,12.46]
[1646080557898,1.0689916,97.872,97.772,104.0]
[1646080558094,1.0689916,97.872,97.752,45.57102054]
[1646080558095,1.0689916,97.872,97.781,5.36]
[1646080558294,0.4867916,97.872,97.791,0.36]
[1646080558813,0.4867916,97.872,97.792,49.4667917]
[1646080559014,0.4867916,97.872,97.793,48.00334684]
[1646080559313,0.4867916,97.872,97.793,109.00507536]
[1646080559514,0.4867916,97.872,97.795,2.96813782]
[1646080559715,0.4867916,97.872,97.811,32.24269036]
[1646080560914,0.4867916,97.872,97.812,29.40686621]
[1646080561118,0.4867916,97.872,97.812,52.36570184]
[1646080561318,0.4867916,97.872,97.813,26.50795607]
[1646080561715,0.4867916,97.872,97.814,26.50795607]
[1646080562216,0.4867916,97.872,97.815,26.50795607]
[1646080562618,0.4867916,97.872,97.816,26.50795607]
[1646080562821,0.4867916,97.872,97.82,12.46]
[1646080563419,0.4867916,97.872,97.821,2.74678921]
[1646080566826,0.4867916,97.872,97.821,26.50795607]
[1646080567030,0.4867916,97.872,97.821,26.00795607]
[1646080567227,0.4867916,97.872,97.822,2.74678921]
[1646080567427,0.4867916,97.872,97.811,32.24269036]
[1646080568030,0.4867916,97.872,97.812,106.74678921]
[1646080568227,0.4867916,97.872,97.813,2.79837912]
[1646080568428,0.4867916,97.872,97.814,104.0]
[1646080568629,0.4867916,97.872,97.815,2.38985744]
[1646080568828,0.4867916,97.872,97.816,104.0]
[1646080569029,0.4867916,97.872,97.831,104.0]
[1646080569229,1.8150582,97.938,97.832,149.57102054]
[1646080569529,1.8150582,97.938,97.832,152.31780975]
[1646080569729,1.8150582,97.938,97.832,149.57102054]
[1646080569929,1.8150582,97.938,97.833,2.74678921]
[1646080570430,5.0,97.98,97.835,104.0]
[1646080570632,5.0,97.98,97.836,2.63648529]
[1646080570832,5.0,97.98,97.851,104.0]
[1646080571032,5.0,97.98,97.852,2.35082929]
[1646080571534,57.2933613,97.979,97.854,104.0]
[1646080571732,1.64267978,97.978,97.855,2.96711288]
[1646080571934,1.64267978,97.978,97.871,45.57102054]
[1646080572132,105.64267978,97.978,97.871,45.57102054]
[1646080572334,1.86528868,97.977,97.856,2.74678921]
[1646080572535,1.57491211,97.974,97.843,2.74678921]
[1646080572936,2.74678921,97.973,97.843,2.74678921]
[1646080573436,1.39640286,97.971,97.844,46.57942164]
[1646080573637,104.0,97.971,97.844,46.57942164]
[1646080573838,4.42310595,97.97,97.844,46.57942164]
[1646080574038,104.0,97.961,97.844,46.57942164]
[1646080574237,104.0,97.953,97.833,2.74678921]
[1646080574438,62.39,97.938,97.833,2.74678921]
[1646080574637,104.0,97.935,97.8,12.46]
[1646080574839,104.0,97.925,97.8,12.46]
[1646080575039,62.39,97.906,97.792,2.74678921]
[1646080575239,13.23366894,97.904,97.793,47.88622908]
[1646080575439,153.6477,97.903,97.793,47.88622908]
[1646080575641,1.53928348,97.902,97.793,47.88622908]
[1646080575841,4.28607269,97.902,97.773,21.54580657]
[1646080576040,4.28607269,97.902,97.772,2.74678921]
[1646080576240,2.74678921,97.901,97.77,12.46]
[1646080576439,4.40214412,97.901,97.77,12.46]
[1646080576839,2.74678921,97.9,97.771,52.52010275]
[1646080577039,104.0,97.899,97.771,52.52010275]
[1646080577249,1.60327267,97.898,97.771,52.52010275]
[1646080577540,104.0,97.885,97.771,52.52010275]
[1646080577741,1.38582128,97.884,97.771,52.52010275]
[1646080577942,62.39,97.88,97.752,2.74678921]
[1646080578139,1.75141967,97.874,97.752,2.74678921]
[1646080578341,62.39,97.872,97.752,2.74678921]
[1646080578540,1.78956932,97.864,97.75,12.46]
[1646080578740,1.78956932,97.864,97.738,2.74678921]
[1646080578942,1.56544479,97.861,97.739,54.69708962]
[1646080579142,1.56544479,97.861,97.739,76.24289619]
[1646080579543,2.74678921,97.86,97.74,21.54580657]
[1646080579945,166.39,97.856,97.74,21.54580657]
[1646080580144,166.39,97.856,97.739,54.69708962]
[1646080580345,4.29390844,97.855,97.72,22.95883563]
[1646080580545,4.29390844,97.855,97.714,14.9626]
[1646080580846,4.29390844,97.855,97.71,12.46]
[1646080580847,2.74678921,97.854,97.71,12.46]
[1646080581248,168.00886584,97.849,97.71,12.46]
[1646080581446,12.46,97.85,97.711,50.9461924]
[1646080581447,166.39,97.847,97.711,50.9461924]
[1646080581646,1.60659896,97.846,97.711,50.9461924]
[1646080581850,4.35338817,97.846,97.711,50.9461924]
[1646080582246,2.74678921,97.845,97.711,50.9461924]
[1646080582448,166.39,97.829,97.711,50.9461924]
[1646080582647,166.39,97.827,97.711,50.9461924]
[1646080582847,1.54572563,97.826,97.711,50.9461924]
[1646080583349,4.29251484,97.826,97.711,50.9461924]
[1646080583547,2.74678921,97.825,97.711,50.9461924]
[1646080583749,2.74678921,97.825,97.712,104.0]
[1646080583948,1.54572563,97.826,97.712,24.29259578]
[1646080584151,1.54572563,97.826,97.713,21.54580657]
[1646080584350,1.54572563,97.826,97.713,24.29259578]
[1646080584664,1.54572563,97.826,97.714,24.29259578]
[1646080585362,1.54572563,97.826,97.711,50.9461924]
[1646080586765,167.93572563,97.826,97.711,50.9461924]
[1646080586966,1.36776726,97.825,97.711,50.9461924]
[1646080587572,2.74678921,97.824,97.69,2.74678921]
[1646080587771,167.81659284,97.819,97.677,21.18267324]
[1646080587972,1.83319391,97.818,97.65,2.74678921]
[1646080588172,4.57998312,97.818,97.65,18.04438921]
[1646080588367,1.85753942,97.816,97.65,15.2976]
[1646080588569,1.85753942,97.816,97.683,34.17732389]
[1646080588770,2.74678921,97.815,97.646,15.0874]
[1646080588970,12.46,97.8,97.644,2.74678921]
[1646080589167,1.73269888,97.798,97.644,2.74678921]
[1646080589668,166.39,97.796,97.659,51.97742554]
[1646080589868,1.8299587,97.795,97.622,10.65410949]
[1646080590070,166.39,97.794,97.622,10.65410949]
[1646080590268,166.39,97.779,97.622,10.65410949]
[1646080590468,1.77151737,97.778,97.622,10.65410949]
[1646080590967,12.46,97.78,97.617,26.73318293]
[1646080590968,192.26845621,97.775,97.623,43.12647769]
[1646080591170,1.80518219,97.774,97.623,43.12647769]
[1646080591469,46.6140656,97.759,97.623,43.12647769]
[1646080591668,1.64688042,97.757,97.624,21.13883563]
[1646080592268,1.64688042,97.757,97.624,41.36817553]
[1646080592669,1.64688042,97.757,97.625,33.52811097]
[1646080593069,1.64688042,97.757,97.626,53.75745087]
[1646080593269,1.64688042,97.757,97.64,12.46]
[1646080593468,1.64688042,97.757,97.641,34.20044161]
[1646080596572,1.64688042,97.757,97.641,54.42978151]
[1646080599778,105.64688042,97.757,97.641,34.20044161]
[1646080599979,1.43388965,97.756,97.641,34.20044161]
[1646080601481,1.43388965,97.756,97.642,104.0]
[1646080601679,1.43388965,97.756,97.641,34.20044161]
[1646080601881,1.43388965,97.756,97.642,104.0]
[1646080602279,1.43388965,97.756,97.641,34.20044161]
[1646080603881,104.0,97.748,97.641,34.20044161]
[1646080604081,1.78984572,97.747,97.641,34.20044161]
[1646080604779,1.66895822,97.745,97.641,34.20044161]
[1646080604980,24.27281633,97.744,97.641,34.20044161]
[1646080605182,1.42709519,97.743,97.641,34.20044161]
[1646080605479,63.81709519,97.743,97.641,34.20044161]
[1646080605680,1.59024098,97.742,97.621,2.74678921]
[1646080605881,166.39,97.729,97.588,10.69602051]
[1646080606080,166.39,97.727,97.586,2.74678921]
[1646080606280,1.73096134,97.726,97.586,2.74678921]
[1646080606482,1.73096134,97.726,97.589,2.74678921]
[1646080606683,94.16906437,97.725,97.59,57.51604947]
[1646080606881,1.63703568,97.724,97.59,69.97604947]
[1646080607081,104.0,97.724,97.591,44.11496474]
[1646080607382,1.63219794,97.723,97.591,44.11496474]
[1646080607681,1.63219794,97.723,97.591,22.97612911]
[1646080607881,1.63219794,97.723,97.591,2.74678921]
[1646080608082,166.39,97.716,97.59,57.51604947]
[1646080608281,1.84449889,97.715,97.59,57.51604947]
[1646080608482,94.16906437,97.725,97.59,57.51604947]
[1646080608483,1.79123768,97.712,97.59,57.51604947]
[1646080608982,1.79123768,97.712,97.591,106.74678921]
[1646080609284,24.4108,97.714,97.593,104.0]
[1646080609483,24.4108,97.714,97.594,2.53065424]
[1646080609681,24.4108,97.714,97.595,104.0]
[1646080609884,24.4108,97.714,97.596,2.37522021]
[1646080610081,24.4108,97.714,97.601,104.0]
[1646080610282,24.4108,97.714,97.6,12.46]
[1646080610484,24.4108,97.714,97.602,22.97612911]
[1646080610684,1.67707806,97.713,97.602,22.97612911]
[1646080610882,1.67707806,97.713,97.603,2.74678921]
[1646080611583,1.67707806,97.713,97.603,106.74678921]
[1646080611782,24.4108,97.714,97.604,2.83196931]
[1646080611985,24.4108,97.714,97.605,19.81086983]
[1646080612184,24.4108,97.714,97.607,2.71498088]
[1646080612784,24.4108,97.714,97.611,104.0]
[1646080612985,24.4108,97.714,97.612,2.81113622]
[1646080613182,24.4108,97.714,97.613,104.0]
[1646080613383,24.4108,97.714,97.614,2.5485709]
[1646080613783,24.4108,97.714,97.615,3.07647561]
[1646080613983,24.4108,97.714,97.615,5.82326482]
[1646080614282,24.4108,97.714,97.616,2.74678921]
[1646080614485,1.39830588,97.713,97.616,2.74678921]
[1646080615584,1.39830588,97.713,97.604,2.74678921]
[1646080616083,1.39830588,97.713,97.606,2.74678921]
[1646080616482,24.4108,97.714,97.606,2.74678921]
[1646080616682,24.4108,97.714,97.606,5.84228317]
[1646080616882,24.4108,97.714,97.606,2.74678921]
[1646080617084,24.4108,97.714,97.607,2.74678921]
[1646080617283,24.4108,97.714,97.61,12.46]
[1646080617682,24.4108,97.714,97.611,2.74678921]
[1646080618886,1.79055902,97.713,97.611,2.74678921]
[1646080619886,105.79055902,97.713,97.611,2.74678921]
[1646080620087,1.6125384,97.712,97.611,2.74678921]
[1646080621287,2.74678921,97.711,97.611,2.74678921]
[1646080621489,166.39,97.709,97.592,2.74678921]
[1646080621687,1.41299644,97.708,97.592,2.74678921]
[1646080621888,1.41299644,97.708,97.572,2.74678921]
[1646080621889,4.15978565,97.708,97.572,2.74678921]
[1646080622088,1.41299644,97.708,97.572,2.74678921]
[1646080622390,1.76086076,97.705,97.558,2.74678921]
[1646080622589,166.39,97.689,97.558,2.74678921]
[1646080622792,166.39,97.687,97.559,57.12948206]
[1646080622992,1.57831577,97.686,97.559,57.12948206]
[1646080623189,1.57831577,97.686,97.56,23.88562484]
[1646080623389,1.57831577,97.686,97.56,36.34562484]
[1646080623589,1.57831577,97.686,97.561,26.2458153]
[1646080623790,1.57831577,97.686,97.562,2.90259696]
[1646080623989,1.57831577,97.686,97.562,49.19373246]
[1646080624189,1.57831577,97.686,97.563,49.10152784]
[1646080624389,1.57831577,97.686,97.564,106.67393882]
[1646080624589,1.57831577,97.686,97.565,2.51798096]
[1646080624789,1.57831577,97.686,97.566,104.0]
[1646080624992,1.57831577,97.686,97.571,104.0]
[1646080625390,1.57831577,97.686,97.573,104.0]
[1646080625592,1.57831577,97.686,97.574,124.19743724]
[1646080625793,1.57831577,97.686,97.574,126.94422645]
[1646080625992,1.57831577,97.686,97.574,20.19743724]
[1646080626192,1.57831577,97.686,97.575,2.74678921]
[1646080627397,1.45615208,97.709,97.59,12.46]
[1646080627596,48.8801,97.713,97.592,3.11569062]
[1646080627998,48.8801,97.713,97.594,104.0]
[1646080628296,51.36792599,97.712,97.596,104.0]
[1646080628494,51.36792599,97.712,97.597,2.70395642]
[1646080628694,51.36792599,97.712,97.612,104.0]
[1646080628893,51.36792599,97.712,97.611,27.141189]
[1646080629293,51.36792599,97.712,97.613,2.74678921]
[1646080629694,1.53806033,97.711,97.613,2.74678921]
[1646080629896,51.36792599,97.712,97.613,2.74678921]
[1646080630096,1.86159433,97.711,97.613,2.74678921]
[1646080633593,1.86159433,97.711,97.614,104.0]
[1646080633993,1.86159433,97.711,97.615,2.74678921]
[1646080634595,1.86159433,97.711,97.616,4.095]
[1646080634894,51.36792599,97.712,97.62,12.46]
[1646080635093,51.36792599,97.712,97.621,4.094]
[1646080635295,51.36792599,97.712,97.621,6.84078921]
[1646080635495,51.36792599,97.712,97.622,2.74678921]
[1646080635693,51.36792599,97.712,97.623,4.094]
[1646080636194,51.36792599,97.712,97.624,2.74678921]
[1646080636895,1.47839485,97.711,97.613,2.74678921]
[1646080637295,1.47839485,97.711,97.611,27.141189]
[1646080638096,1.47839485,97.711,97.611,29.88797821]
[1646080638898,1.47839485,97.711,97.611,52.09690379]
[1646080639197,51.36792599,97.712,97.613,104.0]
[1646080639400,51.36792599,97.712,97.612,22.5642683]
[1646080639597,51.36792599,97.712,97.614,47.51998309]
[1646080639800,51.36792599,97.712,97.615,4.094]
[1646080639999,51.36792599,97.712,97.616,3.01780242]
[1646080640199,51.36792599,97.712,97.63,12.46]
[1646080640402,51.36792599,97.712,97.631,50.1857303]
[1646080640801,51.36792599,97.712,97.632,104.0]
[1646080641000,51.36792599,97.712,97.632,106.74678921]
[1646080641402,1.64985929,97.738,97.633,2.74678921]
[1646080641600,1.64985929,97.738,97.634,104.0]
[1646080641999,1.64985929,97.738,97.635,133.04971479]
[1646080642299,42.99067399,97.737,97.651,27.141189]
[1646080642704,42.99067399,97.737,97.652,106.74678921]
[1646080643105,42.99067399,97.737,97.653,2.74678921]
[1646080643302,42.99067399,97.737,97.654,4.094]
[1646080643703,1.67095289,97.751,97.655,2.74678921]
[1646080643903,23.3974,97.752,97.671,104.0]
[1646080644103,1.8368289,97.788,97.671,104.0]
[1646080644305,23.9498,97.787,97.673,104.0]
[1646080644505,23.9498,97.787,97.675,104.0]
[1646080644713,23.9498,97.787,97.674,6.58848112]
[1646080644714,59.76413635,97.786,97.677,104.0]
[1646080644905,59.76413635,97.786,97.691,104.0]
[1646080645307,59.76413635,97.786,97.69,12.46]
[1646080645308,59.26413635,97.786,97.693,104.0]
[1646080645507,1.78669042,97.825,97.694,2.7749199]
[1646080645706,24.36601883,97.838,97.694,2.7749199]
[1646080645906,1.64694452,97.837,97.695,151.6208]
[1646080646107,1.64694452,97.837,97.701,0.43]
[1646080646307,1.64694452,97.837,97.711,104.0]
[1646080646506,58.28463728,97.836,97.711,104.0]
[1646080646708,1.51731388,97.835,97.713,104.0]
[1646080647106,1.51731388,97.835,97.714,2.74678921]
[1646080649027,1.51731388,97.835,97.716,104.0]
[1646080649229,1.51731388,97.835,97.73,12.46]
[1646080649529,1.51731388,97.835,97.731,31.29063963]
[1646080649726,1.51731388,97.835,97.731,34.03742884]
[1646080649927,1.51731388,97.835,97.732,2.74678921]
[1646080650729,1.51731388,97.835,97.731,31.29063963]
[1646080651132,105.51731388,97.835,97.717,27.63738921]
[1646080651430,1.77183592,97.834,97.706,2.74678921]
[1646080651729,104.0,97.833,97.706,2.74678921]
[1646080651928,104.0,97.825,97.706,2.74678921]
[1646080652129,1.64060902,97.822,97.707,46.81836915]
[1646080652329,104.0,97.82,97.707,46.81836915]
[1646080652628,1.69049356,97.819,97.708,2.74678921]
[1646080653429,166.39,97.816,97.708,2.74678921]
[1646080653631,1.42796359,97.815,97.708,2.74678921]
[1646080655735,1.68708207,97.82,97.709,22.20892558]
[1646080656043,1.68708207,97.82,97.71,2.74678921]
[1646080656333,1.68708207,97.82,97.711,22.20892558]
[1646080656531,1.68708207,97.82,97.711,44.77319388]
[1646080656733,1.68708207,97.82,97.712,2.74678921]
[1646080656932,1.68708207,97.82,97.712,24.95571479]
[1646080657133,1.68708207,97.82,97.713,22.20892558]
[1646080657333,1.68708207,97.82,97.713,24.95571479]
[1646080657533,1.68708207,97.82,97.714,2.74678921]
[1646080657933,1.68708207,97.82,97.715,22.20892558]
[1646080658135,1.68708207,97.82,97.72,12.46]
[1646080658535,1.68708207,97.82,97.721,24.95571479]
[1646080658734,1.68708207,97.82,97.722,31.00855015]
[1646080658936,1.68708207,97.82,97.722,55.96426494]
[1646080659234,1.68708207,97.82,97.724,104.0]
[1646080659735,1.57843361,97.865,97.727,2.25066069]
[1646080660036,1.49613043,97.864,97.741,104.0]
[1646080660237,47.9172,97.865,97.742,2.95056014]
[1646080660536,58.11255164,97.863,97.744,49.46105566]
[1646080660735,58.11255164,97.863,97.746,2.3594947]
[1646080660937,58.11255164,97.863,97.761,104.0]
[1646080661135,58.11255164,97.863,97.763,104.0]
[1646080661538,58.11255164,97.863,97.764,2.74678921]
[1646080661738,58.11255164,97.863,97.765,104.0]
[1646080661939,58.11255164,97.863,97.781,104.0]
[1646080662138,58.11255164,97.863,97.783,104.0]
[1646080662340,58.11255164,97.863,97.782,49.56515836]
[1646080662738,1.53427732,97.862,97.784,2.74678921]
[1646080663338,1.60546322,97.916,97.79,12.46]
[1646080663542,1.55740029,97.914,97.79,12.46]
[1646080663739,1.55740029,97.914,97.791,32.58584812]
[1646080664143,1.55740029,97.914,97.792,32.58584812]
[1646080664342,1.37736215,97.912,97.792,32.58584812]
[1646080664542,1.37736215,97.912,97.793,32.58584812]
[1646080664943,1.37736215,97.912,97.794,29.33933024]
[1646080666744,1.37736215,97.912,97.795,2.74678921]
[1646080667146,1.37736215,97.912,97.8,12.46]
[1646080667545,1.37736215,97.912,97.801,29.33933024]
[1646080667744,1.56121902,97.911,97.801,29.33933024]
[1646080669845,1.56121902,97.911,97.802,2.74678921]
[1646080670246,1.56121902,97.911,97.803,29.33933024]
[1646080670646,1.56121902,97.911,97.804,2.74678921]
[1646080670947,1.56121902,97.911,97.806,102.2]
[1646080671147,1.56121902,97.911,97.81,12.46]
[1646080671548,1.56121902,97.911,97.811,32.08611945]
[1646080671747,1.56121902,97.911,97.812,46.81836915]
[1646080671949,1.56121902,97.911,97.813,4.086]
[1646080672148,1.56121902,97.911,97.814,102.2]
[1646080672351,1.56121902,97.911,97.814,131.53933024]
[1646080672548,1.56121902,97.911,97.814,134.28611945]
[1646080672748,1.56121902,97.911,97.812,46.81836915]
[1646080672749,1.56121902,97.911,97.816,102.2]
[1646080672949,1.56121902,97.911,97.815,32.08611945]
[1646080673148,1.56121902,97.911,97.816,29.33933024]
[1646080673349,1.56121902,97.911,97.816,4.086]
[1646080673548,1.56121902,97.911,97.815,2.74678921]
[1646080674050,1.56121902,97.911,97.803,2.74678921]
[1646080674949,1.56121902,97.911,97.804,57.11576692]
[1646080676653,1.56121902,97.911,97.803,2.74678921]
[1646080676852,1.56121902,97.911,97.787,4.086]
[1646080676853,164.59,97.906,97.787,4.086]
[1646080677051,1.60443226,97.905,97.783,2.74678921]
[1646080677253,4.35122147,97.905,97.783,2.74678921]
[1646080677453,2.74678921,97.904,97.783,2.74678921]
[1646080677653,2.74678921,97.904,97.784,50.22066804]
[1646080677854,24.6555,97.903,97.784,50.22066804]
[1646080678058,1.40393073,97.902,97.785,24.52759729]
[1646080678265,1.40393073,97.902,97.785,49.0507448]
[1646080678456,1.40393073,97.902,97.786,4.088]
[1646080678855,1.40393073,97.902,97.785,49.0507448]
[1646080679258,1.40393073,97.902,97.787,2.74678921]
[1646080679458,1.40393073,97.902,97.785,49.0507448]
[1646080679656,1.40393073,97.902,97.785,24.52759729]
[1646080680059,1.40393073,97.902,97.786,2.74678921]
[1646080680259,1.40393073,97.902,97.79,12.46]
[1646080681059,1.40393073,97.902,97.791,6.83478921]
[1646080681462,1.40393073,97.902,97.792,2.74678921]
[1646080681660,1.40393073,97.902,97.793,4.088]
[1646080682478,1.40393073,97.902,97.794,2.74678921]
[1646080682676,1.40393073,97.902,97.794,6.83278921]
[1646080683076,1.40393073,97.902,97.794,2.74678921]
[1646080683477,1.40393073,97.902,97.795,2.74678921]
[1646080684280,1.40393073,97.902,97.796,4.086]
[1646080684681,1.40393073,97.902,97.797,2.74678921]
[1646080686381,1.40393073,97.902,97.8,12.46]
[1646080686581,1.40393073,97.902,97.802,102.2]
[1646080686784,1.40393073,97.902,97.801,30.35304047]
[1646080686985,1.40393073,97.902,97.803,2.74678921]
[1646080687884,1.40393073,97.902,97.801,27.60625126]
[1646080688985,1.40393073,97.902,97.801,30.35304047]
[1646080692087,24.6555,97.903,97.803,2.81445604]
[1646080692289,24.6555,97.903,97.811,102.2]
[1646080692686,24.6555,97.903,97.812,2.74678921]
[1646080692887,24.6555,97.903,97.813,102.2]
[1646080693189,24.6555,97.903,97.815,102.2]
[1646080693587,24.6555,97.903,97.817,102.2]
[1646080693886,53.37809743,97.913,97.833,102.2]
[1646080694287,53.37809743,97.913,97.834,2.74678921]
[1646080695488,1.60731456,97.912,97.832,27.60625126]